lending/lending_fUSD_20251018
["ID","MTS","AMOUNT","RATE_DAILY","PERIOD"]
[391782421,1760806232049,-300.0,0.00025706,2]
[391782422,1760806232058,-1960.0,0.00025887,2]
[391782423,1760806232068,-658.0,0.00025938,2]
[391782424,1760806232078,-801.0,0.0002599,2]
[391782425,1760806232090,-269.0,0.00026042,2]
[391782426,1760806232099,-1792.0,0.00026093,2]
[391782428,1760806232108,-904.0,0.00026145,2]
[391782430,1760806232117,-838.0,0.00026145,2]
[391782432,1760806232127,-200.0,0.00026186,2]
[391782434,1760806232136,-1522.0,0.00026197,2]
[391782436,1760806232145,-154.75,0.00026264,30]
[391782438,1760806232155,-224.68,0.00026676,2]
[391782440,1760806232168,-151.0,0.00027768,2]
[391782442,1760806232178,-151.0,0.00027768,2]
[391782444,1760806232187,-151.0,0.00027768,2]
[391782446,1760806232197,-214.77150142,0.00027768,2]
[391782448,1760806232207,-615.37649707,0.00027768,2]
[391782449,1760806232217,-500.0,0.00027783,2]
[391782451,1760806232226,-289.31330778,0.00027783,2]
[391782453,1760806232236,-1000.0,0.00027783,2]
[391782457,1760806232246,-21764.53,0.00027784,2]
[391782460,1760806232256,-500.0,0.00027973,5]
[391782463,1760806232265,-500.0,0.00027973,5]
[391782466,1760806232275,-1031.039,0.00027999,18]
[391782469,1760806232284,-30000.0,0.00028,4]
[391782472,1760806232294,-30000.0,0.00028,4]
[391782475,1760806232303,-3882.63112844,0.00028,4]
[391782477,1760806232315,-1018.5105476,0.00028,4]
[391782479,1760806232326,-25098.85832396,0.00028,4]
[391782481,1760806232336,-1845.73658381,0.00028,4]
[391782484,1760806232347,-1319.79933441,0.00028,4]
[391782486,1760806232358,-3306.54071636,0.00028,4]
[391782488,1760806232369,-778.37627176,0.00028,4]
[391782490,1760806232382,-1088.7877,0.00028,4]
[391782491,1760806232394,-675.25634802,0.00028,4]
[391782492,1760806232406,-335.52186275,0.00028,4]
[391782493,1760806232417,-8250.0,0.00028,4]
[391782494,1760806232428,-8431.50804023,0.00028,4]
[391782495,1760806232440,-877.20125783,0.00028,4]
[391782496,1760806232451,-1044.30616614,0.00028,4]
[391782497,1760806232462,-346.84803172,0.00028,4]
[391782498,1760806232474,-3470.2352,0.00028,4]
[391782620,1760806237797,-389.2,0.00028,4]
[391782621,1760806237825,-558.38385669,0.00028,4]
[391782622,1760806237835,-817.73792291,0.00028399,2]
[391782623,1760806237847,-2120.03889618,0.00028399,2]
[391782624,1760806237857,-1315.30150312,0.00028499,2]
[391782625,1760806237867,-2937.77681902,0.00028851,2]
[391782626,1760806237876,-912.12430168,0.00029273,2]
[391782628,1760806237961,-3932.46131544,0.00029273,2]
[391782631,1760806237973,-155.41438288,0.00029273,2]
[391782633,1760806237983,-2937.77681902,0.00029303,2]
[391782635,1760806237993,-321.39943934,0.00029318,2]
[391782637,1760806238003,-166.66,0.00029334,30]
[391782639,1760806238013,-168.0,0.00029558,2]
[391782641,1760806238023,-2340.22737981,0.00029754,2]
[391782643,1760806238036,-597.54943921,0.00029754,2]
[391782645,1760806238046,-166.66,0.00029951,30]
[391782647,1760806238055,-168.32,0.00030196,2]
[391782649,1760806238065,-852.47056028,0.00030206,2]
[391782652,1760806238078,-2085.30625874,0.00030206,2]
[391782653,1760806238097,-1195.0,0.00030304,7]
[391782655,1760806238118,-1675.98874946,0.000304,2]
[391782658,1760806238133,-324.01125054,0.000304,2]
[391782660,1760806238143,-663.15843977,0.00030539,2]
[391782770,1760806239905,-149.86156023,0.00030539,2]
[391782771,1760806239917,-166.66,0.00030569,30]
[391782772,1760806239928,-2937.77681902,0.00030658,2]
[391782773,1760806239939,-730.15027039,0.00030682,2]
[391782774,1760806239959,-466.84972961,0.00030682,2]
[391782775,1760806239968,-600.0,0.00030778,2]
[391782776,1760806239979,-1693.1502694,0.00030778,2]
[391782777,1760806240013,-350.0,0.00030778,2]
[391782778,1760806240024,-7509.01759607,0.00030778,2]
[391782779,1760806240035,-256.45268658,0.00030778,2]
[391782780,1760806240045,-151.0,0.00030778,2]
[391782781,1760806240056,-1000.0,0.00030778,2]
[391782782,1760806240067,-721.12765535,0.00030778,2]
[391782783,1760806240076,-151.0,0.00030778,2]
[391782784,1760806240090,-1000.0,0.00030778,2]
[391782785,1760806240100,-151.0,0.00030778,2]
[391782786,1760806240110,-322.6107,0.00030778,2]
[391782787,1760806240120,-151.0,0.00030778,2]
[391782788,1760806240130,-151.0,0.00030778,2]
[391782789,1760806240140,-279.84518884,0.00030778,2]
[391782790,1760806240149,-1000.0,0.00030778,2]
[391782791,1760806240158,-1000.0,0.00030778,2]
[391782792,1760806240166,-1000.0,0.00030778,2]
[391782793,1760806240175,-3000.0,0.00030778,2]
[391782794,1760806240185,-1000.0,0.00030778,2]
[391782795,1760806240194,-558.18532407,0.00030778,2]
[391782796,1760806240203,-3000.0,0.00030778,2]
[391782797,1760806240212,-1000.0,0.00030778,2]
[391782798,1760806240222,-750.0,0.00030778,2]
[391782799,1760806240232,-3000.0,0.00030778,2]
[391782800,1760806240242,-2000.0,0.00030778,2]
[391782801,1760806240252,-686.58741892,0.00030833,2]
[391782802,1760806240264,-1516.6243148,0.00030833,2]
[391782803,1760806240275,-6012.9394982,0.00030833,2]
[391782804,1760806240284,-1400.23,0.00030845,120]
[391782805,1760806240294,-500.0,0.00030875,5]
[391782806,1760806240304,-500.0,0.00031021,7]
[391782808,1760806240312,-600.0,0.00031021,7]
[391782810,1760806240321,-500.0,0.00031021,7]
[391782812,1760806240331,-500.0,0.00031038,5]
[391782814,1760806240341,-500.30913434,0.00031038,5]
[391782816,1760806240350,-500.0,0.00031038,5]
[391782818,1760806240359,-500.0,0.00031038,5]
[391782819,1760806240369,-500.0,0.00031038,5]
[391782820,1760806240378,-500.0,0.00031042,2]
[391782821,1760806240387,-500.0,0.00031042,2]
[391782822,1760806240396,-500.0,0.00031042,2]
[391782823,1760806240406,-500.0,0.00031042,2]
[391782824,1760806240415,-500.0,0.00031042,2]
[391782825,1760806240424,-500.0,0.00031042,2]
[391782826,1760806240433,-1267.0,0.00031043,2]
[391782827,1760806240443,-785.0,0.00031043,2]
[391782828,1760806240452,-3408.0,0.00031043,2]
[391782829,1760806240462,-2049.0,0.00031043,2]
[391782830,1760806240471,-3725.83,0.00031043,2]
[391782831,1760806240481,-1440.0,0.00031043,2]
[391782832,1760806240490,-2937.77681902,0.0003111,2]
[391782833,1760806240499,-168.32,0.00031185,2]
[391782834,1760806240508,-166.66,0.00031187,30]
[391782835,1760806240518,-151.0,0.00031192,7]
[391782836,1760806240527,-9115.97,0.00031195,2]
[391782837,1760806240536,-500.0,0.00031195,2]
[391782838,1760806240546,-500.0,0.00031195,2]
[391782839,1760806240555,-500.0,0.00031195,2]
[391782840,1760806240564,-1737.0,0.00031196,2]
[391782841,1760806240573,-1195.0,0.00031258,2]
[391782842,1760806240582,-151.0,0.00031258,30]
[391782843,1760806240592,-151.0,0.00031258,30]
[391782844,1760806240601,-151.0,0.00031258,30]
[391782845,1760806240610,-151.0,0.00031258,30]
[391782846,1760806240620,-249.97405,0.00031258,30]
[391782847,1760806240629,-600.0,0.00031326,2]
[391782848,1760806240639,-898.01960709,0.00031427,2]
[391782849,1760806240648,-151.0,0.00031427,30]
[391782850,1760806240658,-9115.97,0.00031469,2]
[391782851,1760806240667,-576.72926418,0.00031469,2]
[391782852,1760806240676,-151.0,0.00031553,30]
[391782853,1760806240685,-1195.0,0.00031553,2]
[391782854,1760806240695,-2937.77681902,0.00031561,2]
[391782855,1760806240704,-300.0,0.00031647,2]
[391782856,1760806240713,-500.0,0.0003171,2]
[391782857,1760806240722,-500.0,0.0003171,2]
[391782858,1760806240732,-500.0,0.0003171,2]
[391782859,1760806240741,-500.0,0.0003171,2]
[391782860,1760806240750,-500.0,0.0003171,2]
[391782861,1760806240759,-500.0,0.0003171,2]
[391782862,1760806240769,-269.43770319,0.0003171,2]
[391782863,1760806240778,-500.0,0.0003171,2]
[391782864,1760806240787,-500.0,0.0003171,2]
[391782865,1760806240797,-500.0,0.0003171,2]
[391782866,1760806240805,-500.0,0.0003171,2]
[391782867,1760806240815,-500.0,0.0003171,2]
[391782868,1760806240824,-500.0,0.0003171,2]
[391782869,1760806240833,-500.0,0.0003171,2]
[391782870,1760806240842,-500.0,0.0003171,2]
[391782871,1760806240851,-500.0,0.0003171,2]
[391782872,1760806240861,-500.0,0.0003171,2]
[391782873,1760806240870,-500.0,0.0003171,2]
[391782874,1760806240880,-198.91942877,0.0003171,2]
[391782875,1760806240889,-500.0,0.0003171,2]
[391782876,1760806240898,-500.0,0.0003171,2]
[391782877,1760806240907,-500.0,0.0003171,2]
[391782878,1760806240917,-9115.97,0.00031743,2]
[391782879,1760806240927,-166.66,0.00031804,30]
[391782880,1760806240936,-600.0,0.00031843,7]
[391782881,1760806240945,-500.0,0.00031984,2]
[391782882,1760806240954,-500.0,0.00031984,2]
[391782883,1760806240964,-500.0,0.00031984,2]
[391782884,1760806240973,-500.0,0.00031984,2]
[391782885,1760806240982,-2937.77681902,0.00032013,2]
[391782886,1760806240992,-9115.97,0.00032017,2]
[391782887,1760806241001,-1948.86713481,0.0003208,2]
[391782888,1760806241011,-273.479,0.0003208,120]
[391782889,1760806241020,-1896.723,0.000321,120]
[391782890,1760806241030,-200.0,0.0003214,2]
[391782891,1760806241039,-449.32860076,0.00032147,2]
[391782892,1760806241049,-1000.0,0.00032181,2]
[391782893,1760806241058,-1713.32585186,0.000322,4]
[391782894,1760806241067,-164.4484701,0.000322,15]
[391782895,1760806241077,-157.10253945,0.000322,2]
[391782896,1760806241089,-500.0,0.00032258,2]
[391782897,1760806241098,-500.0,0.00032258,2]
[391782898,1760806241107,-500.0,0.00032258,2]
[391782899,1760806241116,-500.0,0.00032258,2]
[391782900,1760806241126,-168.32,0.00032259,2]
[391782901,1760806241136,-829.00845126,0.00032269,2]
[391782902,1760806241145,-164.44847007,0.00032288,15]
[391782903,1760806241154,-157.10253945,0.00032288,2]
[391782904,1760806241165,-168.32,0.0003229,2]
[391782905,1760806241174,-9115.97,0.00032291,2]
[391782906,1760806241183,-446.1112,0.00032299,2]
[391782907,1760806241193,-500.0,0.00032299,2]
[391782908,1760806241202,-500.0,0.00032299,2]
[391782909,1760806241212,-1386.6,0.00032299,2]
[391782910,1760806241221,-438.86777477,0.00032299,2]
[391782911,1760806241231,-230.88689577,0.00032299,2]
[391782912,1760806241241,-209.35394645,0.00032299,2]
[391782913,1760806241250,-500.0,0.00032299,2]
[391782914,1760806241260,-500.0,0.00032299,2]
[391782915,1760806241270,-500.0,0.00032299,2]
[391782916,1760806241280,-500.0,0.00032299,2]
[391782917,1760806241289,-1734.32,0.00032299,2]
[391782918,1760806241298,-500.0,0.00032299,2]
[391782919,1760806241308,-500.0,0.00032299,2]
[391782920,1760806241317,-500.0,0.00032299,2]
[391782921,1760806241327,-500.0,0.00032299,2]
[391782922,1760806241336,-500.0,0.00032299,2]
[391782923,1760806241346,-500.0,0.00032299,2]
[391782924,1760806241355,-3364.88,0.00032299,2]
[391782925,1760806241365,-151.0,0.00032299,30]
[391782926,1760806241374,-230.76809186,0.00032299,2]
[391782927,1760806241383,-500.0,0.00032299,2]
[391782928,1760806241393,-500.0,0.00032299,2]
[391782929,1760806241403,-1000.0,0.00032299,2]
[391782930,1760806241412,-500.0,0.00032299,2]
[391782931,1760806241421,-500.0,0.00032299,2]
[391782932,1760806241431,-500.0,0.00032299,2]
[391782933,1760806241440,-500.0,0.00032299,2]
[391782934,1760806241450,-5000.0,0.000323,2]
[391782935,1760806241459,-84802.2094,0.000323,2]
[391782936,1760806241468,-33116.6448,0.000323,2]
[391782937,1760806241477,-151.0,0.000323,30]
[391782938,1760806241486,-151.0,0.000323,30]
[391782939,1760806241495,-151.0,0.000323,30]
[391782940,1760806241504,-151.0,0.000323,30]
[391782941,1760806241514,-151.0,0.000323,30]
[391782942,1760806241523,-698.9758888,0.000323,2]
[391782943,1760806241532,-170.924102,0.000323,2]
[391782944,1760806241706,-16886.90537764,0.000323,30]
[391782945,1760806241718,-154.75,0.00032353,30]
[391782946,1760806241729,-164.44847007,0.00032377,15]
[391782947,1760806241738,-157.10253945,0.00032377,2]
[391782948,1760806241747,-698.9758888,0.00032383,2]
[391782949,1760806241756,-500.0,0.00032383,2]
[391782950,1760806241766,-3862.0,0.00032384,2]
[391782951,1760806241775,-2674.0,0.00032384,2]
[391782952,1760806241786,-151.0,0.00032389,7]
[391782953,1760806241795,-1425.0,0.0003239,2]
[391782954,1760806241804,-150.36,0.0003239,2]
[391782955,1760806241813,-150.36,0.0003239,2]
[391782956,1760806241823,-150.36,0.0003239,2]
[391782957,1760806241832,-150.36,0.0003239,2]
[391782958,1760806241841,-150.36,0.0003239,2]
[391782959,1760806241851,-361.58065699,0.0003239,2]
[391782960,1760806241860,-1000.0,0.00032391,2]
[391782961,1760806241870,-230.45,0.00032391,2]
[391782962,1760806241879,-500.0,0.00032391,2]
[391782963,1760806241888,-500.0,0.00032391,2]
[391782964,1760806241898,-500.0,0.00032391,2]
[391782965,1760806241909,-500.0,0.00032391,2]
[391782966,1760806241919,-500.0,0.00032391,2]
[391782967,1760806241928,-500.0,0.00032391,2]
[391782968,1760806241938,-434.4844535,0.00032392,2]
[391782969,1760806241947,-50243.3762041,0.00032392,2]
[391782970,1760806241956,-151.0,0.00032392,30]
[391782971,1760806241966,-151.0,0.00032392,30]
[391782972,1760806241975,-151.0,0.00032392,30]
[391782973,1760806241985,-151.0,0.00032392,30]
[391782974,1760806241995,-195.005418,0.00032392,30]
[391782975,1760806242006,-1000.0,0.00032395,2]
[391782976,1760806242016,-562.64224927,0.00032395,2]
[391782977,1760806242025,-151.0,0.00032396,7]
[391782978,1760806242035,-151.0,0.00032397,7]
[391782979,1760806242044,-275.91,0.00032398,2]
[391782980,1760806242054,-500.0,0.00032398,2]
[391782981,1760806242064,-506.19843973,0.00032398,2]
[391782982,1760806242074,-500.0,0.00032398,2]
[391782983,1760806242087,-555.62,0.00032398,2]
[391782984,1760806242096,-647.95,0.00032398,2]
[391782985,1760806242106,-500.0,0.00032398,2]
[391782986,1760806242115,-500.0,0.00032398,2]
[391782987,1760806242123,-500.0,0.00032398,2]
[391782988,1760806242133,-500.0,0.00032398,2]
[391782989,1760806242142,-440.41295854,0.00032398,2]
[391782990,1760806242152,-220.21152218,0.00032398,2]
[391782991,1760806242162,-500.0,0.00032398,2]
[391782992,1760806242171,-500.0,0.00032398,2]
[391782993,1760806242180,-500.0,0.00032398,2]
[391782994,1760806242190,-500.0,0.00032398,2]
[391782995,1760806242199,-1278673.46231682,0.00032398,2]
[391782996,1760806242213,-43604.93148921,0.00032398,2]
[391782997,1760806242223,-300.0,0.00032399,10]
[391782998,1760806242232,-1299.43463218,0.00032399,30]
[391782999,1760806242242,-1000.0,0.00032399,2]
[391783000,1760806242252,-218.28996194,0.00032399,15]
[391783001,1760806242262,-16195.61698313,0.00032399,30]
[391783002,1760806242272,-500.0,0.00032399,2]
[391783003,1760806242281,-500.0,0.00032399,2]
[391783004,1760806242291,-500.0,0.00032399,2]
[391783005,1760806242300,-500.0,0.00032399,2]
[391783006,1760806242309,-500.0,0.00032399,2]
[391783007,1760806242319,-328.84,0.00032399,2]
[391783008,1760806242328,-500.0,0.00032399,2]
[391783009,1760806242337,-500.0,0.00032399,2]
[391783010,1760806242346,-500.0,0.00032399,2]
[391783011,1760806242355,-500.0,0.00032399,2]
[391783012,1760806242364,-500.0,0.00032399,2]
[391783013,1760806242373,-500.0,0.00032399,2]
[391783014,1760806242382,-500.0,0.00032399,2]
[391783015,1760806242391,-500.0,0.00032399,2]
[391783016,1760806242400,-500.0,0.00032399,2]
[391783017,1760806242410,-500.0,0.00032399,2]
[391783018,1760806242419,-470.36,0.00032399,2]
[391783019,1760806242429,-500.0,0.00032399,2]
[391783020,1760806242438,-500.0,0.00032399,2]
[391783021,1760806242448,-500.0,0.00032399,2]
[391783022,1760806242457,-545.36516475,0.00032399,2]
[391783023,1760806242466,-432.54072011,0.00032399,2]
[391783024,1760806242475,-500.0,0.00032399,2]
[391783025,1760806242485,-500.0,0.00032399,2]
[391783026,1760806242494,-500.0,0.00032399,2]
[391783027,1760806242503,-500.0,0.00032399,2]
[391783028,1760806242512,-500.0,0.00032399,2]
[391783029,1760806242522,-500.0,0.00032399,2]
[391783030,1760806242531,-571.1,0.00032399,2]
[391783031,1760806242540,-500.0,0.00032399,2]
[391783032,1760806242550,-500.0,0.00032399,2]
[391783033,1760806242559,-500.0,0.00032399,2]
[391783034,1760806242568,-500.0,0.00032399,2]
[391783036,1760806242577,-500.0,0.00032399,2]
[391783037,1760806242586,-500.0,0.00032399,2]
[391783038,1760806242596,-500.0,0.00032399,2]
[391783039,1760806242604,-500.0,0.00032399,2]
[391783040,1760806242614,-999.0,0.00032399,120]
[391783041,1760806242624,-500.0,0.00032399,2]
[391783043,1760806242632,-500.0,0.00032399,2]
[391783044,1760806242641,-500.0,0.00032399,2]
[391783045,1760806242650,-500.0,0.00032399,2]
[391783046,1760806242659,-500.0,0.00032399,2]
[391783047,1760806242668,-500.0,0.00032399,2]
[391783048,1760806242677,-500.0,0.00032399,2]
[391783049,1760806242686,-500.0,0.00032399,2]
[391783050,1760806242696,-538.35508747,0.00032399,2]
[391783051,1760806242705,-150.0,0.00032399,2]
[391783052,1760806242714,-150.0,0.00032399,2]
[391783053,1760806242724,-150.0,0.00032399,2]
[391783054,1760806242733,-150.0,0.00032399,2]
[391783055,1760806242742,-165.21033753,0.00032399,2]
[391783057,1760806242751,-150.0,0.00032399,20]
[391783058,1760806242760,-500.0,0.00032399,2]
[391783059,1760806242769,-500.0,0.00032399,2]
[391783061,1760806242778,-500.0,0.00032399,2]
[391783063,1760806242787,-500.0,0.00032399,2]
[391783065,1760806242796,-500.0,0.00032399,2]
[391783067,1760806242805,-500.0,0.00032399,2]
[391783068,1760806242814,-500.0,0.00032399,2]
[391783070,1760806242825,-500.0,0.00032399,2]
[391783072,1760806242834,-500.0,0.00032399,2]
[391783074,1760806242843,-150.0,0.00032399,2]
[391783076,1760806242852,-150.0,0.00032399,2]
[391783078,1760806242861,-500.0,0.00032399,2]
[391783079,1760806242870,-250.0,0.00032399,2]
[391783080,1760806242879,-150.0,0.00032399,2]
[391783081,1760806242888,-500.0,0.00032399,2]
[391783082,1760806242897,-500.0,0.00032399,2]
[391783083,1760806242907,-500.0,0.00032399,2]
[391783084,1760806242916,-500.0,0.00032399,2]
[391783085,1760806242925,-500.0,0.00032399,2]
[391783086,1760806242934,-500.0,0.00032399,2]
[391783087,1760806242943,-500.0,0.00032399,2]
[391783088,1760806242952,-500.0,0.00032399,2]
[391783089,1760806242961,-500.0,0.00032399,2]
[391783090,1760806242971,-500.0,0.00032399,2]
[391783091,1760806242980,-500.0,0.00032399,2]
[391783092,1760806242990,-500.0,0.00032399,2]
[391783093,1760806242999,-500.0,0.00032399,2]
[391783094,1760806243008,-776.06092,0.00032399,2]
[391783095,1760806243018,-1237.0,0.000324,5]
[391783096,1760806243027,-2247.36792086,0.000324,15]
[391783097,1760806243096,-10693.00000001,0.000324,15]
[391783102,1760806246003,-1316.53702575,0.00031043,2]
[391783107,1760806381459,195.0,0.0002552,120]
[391783108,1760806384939,500.0,0.0002552,120]
[391783109,1760806385046,500.0,0.00025619,120]
[391783110,1760806385159,548.34135293,0.00028281,120]
[391783111,1760806400724,2000.0,0.00028281,120]
[391783112,1760806410566,500.0,0.00028281,120]
[391783113,1760806445448,500.0,0.0002552,120]
[391783114,1760806445736,500.0,0.00024066,120]
[391783115,1760806445770,500.0,0.00027146,120]
[391783116,1760806507219,500.0,0.0002629,120]
[391783117,1760806507256,500.0,0.0002405,120]
[391783118,1760806507342,500.0,0.0002442,120]
[391783119,1760806562947,500.0,0.0002629,120]
[391783120,1760806563085,500.0,0.0002405,120]
[391783121,1760806563193,500.0,0.0002442,120]
[391783122,1760806624457,500.0,0.0002629,120]
[391783123,1760806624566,500.0,0.0002405,120]
[391783124,1760806624672,500.0,0.0002442,120]
[391783125,1760806682656,500.0,0.0002629,120]
[391783126,1760806682694,504.69,0.0002405,120]
[391783128,1760806891989,-160.58,0.00015018,2]
[391783129,1760806892012,-95.33598028,0.0001652,2]
[391783130,1760807028048,-500.0,0.00016388,2]
[391783131,1760807028071,-200.0,0.00016388,2]
[391783132,1760807028096,-12.31550734,0.0001652,2]
[391783133,1760807157213,-52.92851238,0.0001652,2]
[391783134,1760807157239,-160.58,0.00018022,2]
[391783135,1760807157264,-250.0,0.00018172,2]
[391783136,1760807157287,-160.58,0.00019524,2]
[391783159,1760807431898,-151.0,0.00021025,2]
[391783160,1760807431908,-160.58,0.00021025,2]
[391783161,1760807431918,-156.587,0.00021573,2]
[391783162,1760807431927,-162.380719,0.00022121,2]
[391783163,1760807431937,-160.58,0.00022527,2]
[391783164,1760807431946,-168.3888056,0.00022669,2]
[391783165,1760807431956,-195.0,0.00023128,2]
[391783166,1760807431967,-174.61919141,0.00023217,2]
[391783167,1760807431977,-243.61798369,0.00023503,2]
[391783168,1760807431986,-181.08010149,0.00023765,2]
[391783169,1760807431996,-222.33647559,0.000239,2]
[391783170,1760807432006,-204.05722615,0.000239,2]
[391783171,1760807432016,-150.0,0.000239,2]
[391783172,1760807432026,-160.58,0.00024029,2]
[391783173,1760807432036,-222.33647559,0.000242,2]
[391783174,1760807432046,-538.0,0.00024273,2]
[391783175,1760807432056,-164.67077903,0.00024313,2]
[391783176,1760807432065,-222.33647559,0.000244,2]
[391783177,1760807432075,-1463.0,0.000245,5]
[391783178,1760807432085,-222.33647559,0.000247,2]
[391783179,1760807432094,-324.9758056,0.00024737,2]
[391783180,1760807432103,-1003.57110848,0.00024752,2]
[391783181,1760807432113,-480.0,0.00024899,2]
[391783182,1760807432123,-222.33647559,0.000249,2]
[391783183,1760807432132,-162.29,0.00025,2]
[391783184,1760807432143,-160.58,0.00025531,2]
[391783185,1760807432152,-78.89599156,0.00027033,2]
[391783186,1760807432166,-81.68400844,0.00027033,2]
[391783188,1760807432175,-299.82049471,0.00028293,2]
[391783190,1760807432187,-668.41099229,0.00028293,2]
[391783191,1760807432197,-153.0,0.00028436,2]
[391783192,1760807432206,-129.90544499,0.00028436,2]
[391783193,1760807432225,-23.09455501,0.00028436,2]
[391783194,1760807432237,-153.0,0.00028436,2]
[391783195,1760807432247,-119.51405874,0.00028436,2]
[391783196,1760807432258,-33.48594126,0.00028436,2]
[391783197,1760807432269,-153.0,0.00028436,2]
[391783199,1760807432279,-188.0,0.00028436,2]
[391783201,1760807432288,-160.58,0.00028534,2]
[391783203,1760807432297,-560.52206527,0.00028919,3]
[391783206,1760807432320,-105.47793473,0.00028919,3]
[391783208,1760807432329,-150.0,0.0002894,2]
[391783211,1760807432339,-864.33,0.00029127,2]
[391783214,1760807432348,-342.69,0.00029127,2]
[391783216,1760807432358,-168.0,0.0002913,2]
[391783219,1760807432368,-4222.39042315,0.00029184,2]
[391783222,1760807432380,-2308.74451717,0.00029184,2]
[391783224,1760807432392,-401.79,0.00029184,2]
[391783226,1760807432403,-620.45505968,0.00029184,2]
[391783228,1760807432414,-168.0,0.00029217,2]
[391783230,1760807432423,-180.02627482,0.00029286,3]
[391783232,1760807432432,-515.0,0.0002937,2]
[391783234,1760807432442,-168.0,0.0002956,7]
[391783236,1760807432451,-168.0,0.00029581,2]
[391783239,1760807432461,-168.0,0.00029814,7]
[391783240,1760807432470,-1298.0,0.00029889,2]
[391783242,1760807432480,-1195.85,0.00029989,2]
[391783244,1760807432489,-160.58,0.00030036,2]
[391783246,1760807432498,-2732.11,0.00030036,2]
[391783249,1760807432508,-250.0,0.00030047,2]
[391783250,1760807432517,-250.0,0.00030047,7]
[391783252,1760807432527,-6436.0,0.00030293,2]
[391783254,1760807432536,-1992.777,0.00030293,2]
[391783256,1760807432545,-2546.0,0.00030293,2]
[391783258,1760807432555,-168.0,0.00030347,2]
[391783261,1760807432565,-1086.604,0.00030639,26]
[391783262,1760807432575,-186.67,0.00030639,2]
[391783264,1760807432584,-177.819,0.00030639,26]
[391783266,1760807432593,-500.0,0.00030763,5]
[391783268,1760807432602,-500.0,0.00030763,5]
[391783270,1760807432612,-600.0,0.00030778,2]
[391783272,1760807432622,-1000.0,0.00030778,2]
[391783274,1760807432632,-3000.0,0.00030778,2]
[391783276,1760807432641,-596.41758669,0.00030778,2]
[391783278,1760807432651,-262.37632027,0.00030778,2]
[391783281,1760807432661,-1850.16329385,0.00030778,2]
[391783283,1760807432671,-9552.16786547,0.00030778,2]
[391783285,1760807432684,-1000.0,0.00030778,2]
[391783287,1760807432693,-1000.0,0.00030778,2]
[391783289,1760807432703,-549.8631288,0.00030778,2]
[391783291,1760807432713,-381.02873803,0.00030778,2]
[391783293,1760807432722,-250.0,0.00030778,2]
[391783295,1760807432731,-250.0,0.00030778,2]
[391783297,1760807432741,-250.0,0.00030778,2]
[391783299,1760807432758,-250.0,0.00030778,2]
[391783301,1760807432769,-250.0,0.00030778,2]
[391783303,1760807432778,-250.0,0.00030778,2]
[391783305,1760807432788,-250.0,0.00030778,2]
[391783307,1760807432799,-322.6107,0.00030778,2]
[391783309,1760807432809,-250.0,0.00030778,2]
[391783311,1760807432818,-250.0,0.00030778,2]
[391783313,1760807432827,-250.0,0.00030778,2]
[391783315,1760807432837,-250.0,0.00030778,2]
[391783317,1760807432846,-1769.31845638,0.00030833,2]
[391783319,1760807432855,-166.45,0.00030896,2]